{"text_format":"3","workbook":"xlsx","n_sheets":3,"sheets":["Tender Cover Sheet","Hardware "," CPA "],"not_rendered":{"images":1,"external_links":8,"defined_names":245},"read":"whole","date_system":"1900"}

{"sheet":"Tender Cover Sheet","index":0,"n_rows":32,"n_cols":5,"rows_kept":32}
[]
[]
[null,null,"Enquiry No.","E2774NTCSATX"]
[null,null,"Package Name:","THE DESIGN, MANUFACTURE, TESTING AND SUPPLY OF SUBSTATION STRANDED CONDUCTOR CLAMPS AND SUBSTATION HARDWARE FOR NATIONAL TRANSMISSION COMPANY SOUTH AFRICA (NTCSA), ON AN “AS AND WHEN” REQUIRED BASIS"]
[null,null,"Tenderer's Name:",{"$f":"'[1]Read Me'!D4","v":0}]
[]
[]
[]
[]
[]
[]
[null,null,"PRICING INFORMATION"]
[]
[null,null,"RAND VALUE IN WORDS","[Price in Words]"," "]
[]
[]
[null,null,"TENDERED PRICE:  IN ZAR",{"$f":"'Hardware '!I243","v":{"v":0,"d":"  0  RAND"}}]
[null,null,"(excluding VAT)"]
[]
[null,null,"TENDERED PRICE:  IN ZAR"]
[null,null,"(including VAT)",{"$f":"'Hardware '!J245","v":{"v":0,"d":"  0  RAND"}}]
[]
[]
[]
[null,null,"DATE :"," "]
[]
[]
[null,null,"FULL NAMES OF SIGNATORY:"," "]
[]
[]
[null,null,"SIGNATURE :"]
[{"$nulls":4}," "]

{"sheet":"Hardware ","index":1,"n_rows":245,"n_cols":10,"rows_kept":245,"merged":[[1,1,1,4],[243,6,243,7]]}
[]
[null,"Clamps Substation Hard ware"]
[]
[null,"ITEM NO","MATERIAL NO","SAP NO","DESCRIPTION","UNIT","QTY","UNIT PRICE","TOTAL PRICE","CPA FORMULAR"]
[null,1,"EX-A",401786,"CLAMP:EX-A;BOLT/BOLT; STEM 26 COND 16.3",null,1078,null,{"$f":"H5*G5","v":0}]
[null,2,"EX-B",401584,"CLAMP:EX-B;BOLT/BOLT; STEM 26 COND 26.5",null,1099,null,{"$f":"H6*G6","v":0}]
[null,3,"EX-C",401788,"CLAMP:EX-C;BOLT/BOLT; STEM 38 COND 16.3",null,225,null,0]
[null,4,"EX-D",401740,"CLAMP:EX-D;BOLT/BOLT; STEM 38 COND 26.5",null,{"v":1960.6,"d":"1961"},null,0]
[null,5,"EX-E",401635,"CLAMP:EX-E;BOLT/BOLT; STEM 38 COND 38.3",null,{"v":2485.55,"d":"2486"},null,0]
[null,6,"EX-F",401586,"CLAMP:EX-F;BOLT/BOLT; STEM 38 COND 19",null,225,null,0]
[null,7,"EX-G",401776,"CLAMP:EX-G;BOLT/BOLT; STEM 35 COND 26.5",null,25,null,0]
[null,8,"EX-H",401748,"CLAMP:EX-H;BOLT/BOLT; STEM 35 COND 38.3",null,885,null,0]
[null,9,"EX-J",401582,"CLAMP:EX-J;BOLT/BOLT; STEM 26 COND 19",null,3525,null,0]
[null,10,"EX-K",401703,"CLAMP:EX-K;BOLT/BOLT; STEM 26 COND 21",null,425,null,0]
[null,11,"EXC-A",401752,"CLAMP:EXC-A;BOLT/COMP; STEM 26 COND26.5",null,{"v":1376.25,"d":"1376"},null,0]
[null,12,"EXC-B",401766,"CLAMP:EXC-B;BOLT/COMP; STEM 38 COND26.5",null,{"v":1402.2,"d":"1402"},null,0]
[null,13,"EXC-C",5660,"CLAMP:EXC-C;BOLT/COMP; STEM 38 COND38.3",null,{"v":956.25,"d":"956"},null,0]
[null,14,"EXC-D",401637,"CLAMP:EXC-D;BOLT/COMP; STEM 38 COND38.3",null,{"v":2168.8,"d":"2169"},null,0]
[null,15,"EXC-E",5691,"CLAMP:EXC-E;BOLT/COMP; STEM 38 COND38.3",null,225,null,0]
[null,16,"EXC-F",401639,"CLAMP:EXC-F;BOLT/COMP; STEM 38 COND26.5",null,{"v":821.8,"d":"822"},null,0]
[null,17,"EXC-G",5692,"CLAMP:EXC-G;BOLT/COMP; STEM 38 COND26.5",null,25,null,0]
[null,18,"EXC-H",401643,"CLAMP:EXC-H;BOLT/COMP; STEM 38 COND18.1",null,25,null,0]
[null,19,"EXC-J",5686,"CLAMP:EXC-J;BOLT/COMP; STEM 35 COND26.5",null,325,null,0]
[null,20,"EXC-K",5687,"CLAMP:EXC-K;BOLT/COMP; STEM 35 COND38.3",null,555,null,0]
[null,21,"EXC-L",401641,"CLAMP:EXC-L;BOLT/COMP; STEM 26 COND26.5",null,545,null,0]
[null,22,"EXC-M",401577,"CLAMP:EXC-M;BOLT/COMP; STEM 26 COND18.1",null,25,null,0]
[null,23,"EXC-N",5182,"CLAMP:EXC-N;BOLT/COMP; STEM 40 COND26.5",null,425,null,0]
[null,24,"EXC-P",5183,"CLAMP:EXC-P;BOLT/COMP; STEM 60 COND38.3",null,825,null,0]
[null,25,"EXC-Q",5184,"CLAMP:EXC-Q;BOLT/COMP; STEM 60 COND38.3",null,320,null,0]
[null,26,"EXC-R",5185,"CLAMP:EXC-R;BOLT/COMP; STEM 60 COND38.3",null,25,null,0]
[null,27,"EUT-A",null,"CLAMP,EUT-A ;BOLT-TEE;6-11 MM;6-11 MM",null,275,null,0]
[null,28,"EUT-B",401742,"CLAMP:EUT-B;BOLT-TEE;12-21 MM;12-21 MM",null,150,null,0]
[null,29,"EUT-C",401746,"CLAMP:EUT-C;BOLT-TEE;12-21 MM;22-28 MM",null,25,null,0]
[null,30,"EUT-D",401572,"CLAMP:EUT-D;BOLT-TEE;22-28 MM;12-21 MM",null,25,null,0]
[null,31,"EUT-E",401744,"CLAMP:EUT-E;BOLT-TEE;22-28 MM;22-28 MM",null,25,null,0]
[null,32,"EUT-F",null,"CLAMP,EUT-A ;BOLT-TEE;12-21 MM;6-11 MM",null,200,null,0]
[null,33,"EUT-G",215871,"CLAMP:EUT-G;BOLT-TEE;6-11 MM;28-22 MM",null,150,null,0]
[null,34,"ETC-A",401758,"CLAMP:ETC-A;T/COMP;23.5 MM;26.5 MM",null,335,null,0]
[null,35,"ETC-B",401760,"CLAMP:ETC-B;T/COMP;23.5 MM;38.3 MM",null,575,null,0]
[null,36,"ETC-C",401754,"CLAMP:ETC-C;T/COMP;26.5 MM;26.5 MM",null,925,null,0]
[null,37,"ETC-D",401770,"CLAMP:ETC-D;T/COMP;26.5 MM;38.3 MM",null,525,null,0]
[null,38,"ETC-E",5654,"CLAMP:ETC-E;T/COMP;28.6 MM;26.5 MM",null,275,null,0]
[null,39,"ETC-F",401763,"CLAMP:ETC-F;T/COMP;28.6 MM;38.3 MM",null,425,null,0]
[null,40,"ETC-G",5656,"CLAMP:ETC-G;T/COMP;35.6 MM;26.5 MM",null,25,null,0]
[null,41,"ETC-H",401765,"CLAMP:ETC-H;T/COMP;35.6 MM;38.3 MM",null,275,null,0]
[null,42,"ETC-J",401768,"CLAMP:ETC-J;T/COMP;38.3 MM;26.5 MM",null,775,null,{"$f":"H46*G46","v":0}]
[null,43,"ETC-K",401756,"CLAMP:ETC-K;T/COMP;38.3 MM;38.3 MM",null,4025,null,0]
[null,44,"ETC-L",401790,"CLAMP:ETC-L;T/COMP;18.1 MM;26.5 MM",null,275,null,0]
[null,45,"ETC-M",401574,"CLAMP:ETC-M;T/COMP;18.1 MM;18.1 MM",null,25,null,0]
[null,46,"ETC-N",401576,"CLAMP:ETC-N;T/COMP;26.5 MM;18.1 MM",null,275,null,0]
[null,47,"ETC-P",5167,"CLAMP:ETC-P;T/COMP;38.3 MM;18.1 MM",null,25,null,0]
[null,48,"ETC-Q",165527,"CLAMP:ETC-Q;T/COMP;38.3 MM;16 MM",null,25,null,0]
[null,49,"ETC-R",null,"CLAMP:ETC-R;T/COMP;26.5 MM;16 MM",null,25,null,0]
[null,50,"ETC-S",null,"CLAMP:ETC-S;T/COMP;16 MM;16 MM",null,175,null,0]
[null,51,"ETC-T",null,"CLAMP:ETC-T;T/COMP;26.5 MM;26.5 MM",null,375,null,0]
[null,52,"ETC-U",null,"CLAMP:ETC-U;T/COMP;38.3 MM;26.5 MM",null,775,null,0]
[null,53,"ETC-V",686341,"CLAMP:ETC-V;T/COMP;38.3 MM;38.3 MM",null,875,null,0]
[null,54,"ETC-W",null,"CLAMP:ETC-W;T/COMP;18.1 MM;16.25 MM",null,185,null,0]
[null,55,"ETC-X",null,"CLAMP:ETC-X;T/COMP;26.5 MM;16.25 MM",null,25,null,0]
[null,56,"ETC-Y",null,"CLAMP:ETC-Y;T/COMP;38.3 MM;16.25 MM",null,200,null,0]
[null,57,"ETC-Z",null,"CLAMP:ETC-Z;T/COMP;25.97 MM; 26.5 MM",null,325,null,0]
[null,58,"ETC-AA",null,"CLAMP:ETC-AA;T/COMP;25.97 MM; 38.3 MM",null,25,null,0]
[null,59,"ETC-AB",null,"CLAMP:ETC-AB;T/COMP;24.71 MM;26.5 MM",null,25,null,0]
[null,60,"ETC-AC",null,"CLAMP:ETC-AC;T/COMP;24.71 MM;38.3 MM",null,25,null,0]
[null,61,"ETC-AD",null,"CLAMP:ETC-AD;T/COMP;22.61 MM;26.5 MM",null,25,null,0]
[null,62,"ETC-AE",null,"CLAMP:ETC-AE;T/COMP;22.61MM;38.3 MM",null,25,null,0]
[null,63,"EY-A",401738,"CLAMP:EY-A;Y/BOLT;2X26.5 MM;STEM 38 MM",null,25,null,0]
[null,64,"EY-B",5631,"CLAMP:EY-B;Y/BOLT;2X38.3 MM;STEM 38 MM",null,25,null,0]
[null,65,"EY-C",206352,"CLAMP:EY-C;Y/BOLT;2X26.5 MM;STEM 38 MM",null,25,null,{"$f":"H69*G69","v":0}]
[null,66,"EY-D",5629,"CLAMP:EY-D;Y/BOLT;2X38.3 MM;STEM 38 MM",null,25,null,0]
[null,67,"EY-E",401661,"CLAMP:EY-E;Y/BOLT;2X26.5 MM;STEM 26 MM",null,25,null,0]
[null,68,"EY-F",206354,"CLAMP:EY-F;Y/BOLT;2X26.5 MM;STEM 26 MM",null,375,null,0]
[null,69,"EY-G",401663,"CLAMP:EY-G;Y/BOLT;2X38.3 MM;STEM 26 MM",null,1125,null,0]
[null,70,"EY-H",206355,"CLAMP:EY-H;Y/BOLT;2X38.3 MM;STEM 26 MM",null,325,null,0]
[null,71,"EY-J",578308,"CLAMP:EY-J;Y/BOLT;2X38.3 MM;STEM 60 MM",null,25,null,0]
[null,72,"EY-K",685970,"CLAMP:EY-K;Y/BOLT;2X26.5 MM;STEM 60 MM",null,25,null,0]
[null,73,"EYC-A",401774,"CLAMP:EYC-A;2X26.5 COMP 38 BOLTED 0DG ",null,175,null,0]
[null,74,"EYC-B",5663,"CLAMP:EYC-B;2X38.3 COMP 38 BOLTED 0DG ",null,375,null,0]
[null,75,"EYC-C",5647,"CLAMP:EYC-C;2X26.5 COMP 38 BOLTED 45DG",null,775,null,0]
[null,76,"EYC-D",401750,"CLAMP:EYC-D;2X38.3 COMP 38 BOLTED 45DG ",null,875,null,0]
[null,77,"EYC-E",401778,"CLAMP:EYC-E;2X26.5 COMP 38 BOLTED 90DG ",null,25,null,0]
[null,78,"EYC-F",401772,"CLAMP:EYC-F;2X38.3 COMP 38 BOLTED 90DG",null,375,null,0]
[null,79,"EYC-G",5681,"CLAMP:EYC-G;2X38.3 COMP 60 BOLTED 0DG ",null,200,null,0]
[null,80,"EYC-H",5671,"CLAMP:EYC-H;2X38.3 COMP 60 BOLTED 45DG ",null,325,null,0]
[null,81,"EYC-J",401783,"CLAMP:EYC-J;2X38.3 COMP 60 BOLTED 90DG",null,25,null,0]
[null,82,"EYC-K",401656,"CLAMP:EYC-K;2X26.5 COMP 26 BOLTED 0DG",null,25,null,0]
[null,83,"EYC-L",5239,"CLAMP:EYC-L;2X26.5 COMP 26 BOLTED 45DG ",null,150,null,0]
[null,84,"EYC-M",5240,"CLAMP:EYC-M;2X26.5 COMP 26 BOLTED 90DG",null,25,null,0]
[null,85,"EYC-N",401799,"CLAMP:EYC-N;COMP/PALM ODG;2X38.3 MM ",null,175,null,0]
[null,86,"EYC-P",401801,"CLAMP:EYC-P;COMP/PALM 45DG;2X38.3 MM ",null,275,null,0]
[null,87,"EYC-Q",5241,"CLAMP:EYC-Q;COMP/PALM 90DG;2X38.3 MM",null,150,null,0]
[null,88,"EYC-R",400426,"CLAMP:EYC-R;COMP/PALM ODG;2X38.3 MM",null,25,null,{"$f":"H92*G92","v":0}]
[null,89,"EYC-S",401802,"CLAMP:EYC-S;COMP/PALM 45DG;2X38.3 MM ",null,2035,null,0]
[null,90,"EYC-T",5705,"CLAMP:EYC-T;COMP/PALM 90DG;2X38.3 MM",null,25,null,0]
[null,91,"EYC-U",401805,"CLAMP:EYC-U;COMP/PALM ODG;2X26.5 MM",null,200,null,0]
[null,92,"EYC-V",5707,"CLAMP:EYC-V;COMP/PALM 45DG;2X26.5 MM",null,150,null,0]
[null,93,"EYC-W",5708,"CLAMP:EYC-W;COMP/PALM 90DG;2X26.5 MM",null,25,null,0]
[null,94,"EYC-X",224235,"CLAMP:EYC-X;COMP/PALM ODG;2X26.5 MM ",null,25,null,0]
[null,95,"EYC-Y",401807,"CLAMP:EYC-Y;COMP/PALM 45DG;2X26.5 MM ",null,25,null,0]
[null,96,"EYC-Z",401809,"CLAMP:EYC-Z;COMP/PALM 90DG;2X26.5 MM",null,25,null,0]
[null,97,"EYC-AA",5250,"CLAMP:EYC-AA;2X26.5 COMP 60 BOLTED 0DG",null,25,null,0]
[null,98,"EYC-AB",5251,"CLAMP:EYC-AB;2X26.5 COMP 60 BOLTED 45DG",null,25,null,0]
[null,99,"EYC-AC",5252,"CLAMP:EYC-AC;2X26.5 COMP 60 BOLTED 90DG",null,25,null,0]
[null,100,"EY3-A",5667,"CLAMP:EY3-A;3Y/BOLT;STEM 38 COND 3X38.3",null,225,null,0]
[null,101,"EY3-B",5717,"CLAMP:EY3-B;3Y/BOLT;STEM 60 COND 3X38.3",null,525,null,0]
[null,102,"EYC3-A",5669,"CLAMP:EYC3-A;3X38.3 COMP/60 STEM; 0DG",null,25,null,0]
[null,103,"EYC3-B",5682,"CLAMP:EYC3-B;3X38.3 COMP/9H PAD; 0DG",null,25,null,0]
[null,104,"EYC3-C",5645,"CLAMP:EYC3-C;3X38.3 COMP/60 STEM; 45DG",null,325,null,0]
[null,105,"EYC3-D",5644,"CLAMP:EYC3-D;3X38.3 COMP/9H PAD; 45DG",null,555,null,0]
[null,106,"EYC3-E",5666,"CLAMP:EYC3-E;3X38.3 COMP/60 STEM; 90DG",null,335,null,0]
[null,107,"EYC3-F",5278,"CLAMP:EYC3-F;3X38.3 COMP/9H PAD; 90DG",null,25,null,0]
[null,108,"EYC3-G",5155,"CLAMP:EYC3-G;3X38.3 COMP/8H PAD; 0DG",null,425,null,0]
[null,109,"EYC3-H",5677,"CLAMP:EYC3-H;3X38.3 COMP/8H PAD; 45DG",null,825,null,0]
[null,110,"EYC3-J",5678,"CLAMP:EYC3-J;3X38.3 COMP/8H PAD; 90DG",null,395,null,0]
[null,111,"EPC-A",401580,"CLAMP:EPC-A;COMP/PALM ODG;26.5 MM ",null,775,null,0]
[null,112,"EPC-B",400420,"CLAMP:EPC-B;COMP/PALM 45DG;26.5 MM ",null,1175,null,0]
[null,113,"EPC-C",560891,"CLAMP:EPC-C;COMP/PALM 90DG;26.5 MM",null,25,null,0]
[null,114,"EPC-D",400422,"CLAMP:EPC-D;COMP/PALM ODG;38.3 MM ",null,575,null,0]
[null,115,"EPC-E",400425,"CLAMP:EPC-E;COMP/PALM 45DG;38.3 MM ",null,1675,null,0]
[null,116,"EPC-F",560892,"CLAMP,STRAIN:EPC-F;38.3MM PALM 90DG",null,825,null,0]
[null,117,"EPC-G",570038,"CLAMP:EPC-G;COMP/PALM ODG;26.5 MM",null,25,null,0]
[null,118,"EPC-H",570040,"CLAMP:EPC-H;COMP/PALM 45DG;26.5 MM ",null,25,null,0]
[null,119,"EPC-J",570042,"CLAMP:EPC-J;COMP/PALM 90DG;26.5 MM",null,150,null,0]
[null,120,"EPC-K",570039,"CLAMP:EPC-K;COMP/PALM ODG;38.3 MM ",null,320,null,0]
[null,121,"EPC-L",570041,"CLAMP:EPC-L;COMP/PALM 45DG;38.3 MM ",null,575,null,0]
[null,122,"EPC-M",570043,"CLAMP:EPC-M;COMP/PALM 90DG;38.3 MM",null,25,null,0]
[null,123,"EPC-N",5700,"CLAMP:EPC-N;COMP/PALM ODG;80MM X 90MM",null,25,null,0]
[null,124,"EPC-P",400413,"CLAMP:EPC-P;COMP/PALM ODG;125MM X 125MM",null,25,null,{"$f":"H128*G128","v":0}]
[null,125,"EPC-Q",570035,"CLAMP:EPC-Q;COMP/PALM ODG;16.3 MM ",null,25,null,0]
[null,126,"EPC-R",570036,"CLAMP:EPC-R;COMP/PALM 45DG;16.3 MM ",null,25,null,0]
[null,127,"EPC-S",570037,"CLAMP:EPC-S;COMP/PALM 90DG;16.3 MM",null,25,null,0]
[null,128,"ES-A",402557,"SPACER:ES-A;COND 2X26.5MM;150MM CRS ",null,885,null,0]
[null,129,"ES-B",402559,"SPACER:ES-B;COND 2X38.3MM;150MM CRS ",null,4025,null,0]
[null,130,"ES-C",402530,"SPACER:ES-C;COND 2X26.5MM;330MM CRS ",null,425,null,0]
[null,131,"ES-D",402532,"SPACER:ES-D;COND 2X38.3MM;330MM CRS",null,775,null,0]
[null,132,"ES-E",11491,"SPACER:ES-E;COND 3X38.3MM;165MM CRS",null,7205,null,0]
[null,133,"ESC-A",206361,"SPACER:ESC-A;COND 2X26.5MM;150MM CRS ",null,25,null,0]
[null,134,"ESC-B",206362,"SPACER:ESC-B;COND 2X38.3MM;150MM CRS MM ",null,525,null,0]
[null,135,"ESC-C",11058,"SPACER:ESC-C;COND 2X26.5MM;330MM CRS ",null,25,null,0]
[null,136,"ESC-D",11059,"SPACER:ESC-D;COND 2X38.3MM;330MM CRS ",null,25,null,0]
[null,137,"ESC-E",11060,"SPACER:ESC-E;COND 3X38.3MM;165MM CRS",null,25,null,0]
[null,138,"EXP-A",400411,"CLAMP, STUD PALM BOLT 26.5mm EXP-A",null,775,null,0]
[null,139,"EXP-B",401665,"CLAMP,STUD PALM BOLT 38.3mm EXP-B",null,7205,null,0]
[null,140,"EXCP-A",401673,"CLAMP:EXCP-A;PI MOUNT;26.5 MM;PCD 76",null,25,null,0]
[null,141,"EXCP-B",401675,"CLAMP:EXCP-B;PI MOUNT;26.5 MM;PCD 127",null,25,null,0]
[null,142,"EXCP-C",401677,"CLAMP:EXCP-C;PI MOUNT;38.3 MM;PCD 76",null,25,null,0]
[null,143,"EXCP-D",401679,"CLAMP:EXCP-D;PI MOUNT;38.3 MM;PCD 127",null,575,null,0]
[null,144,"EXCP2-A",401667,"CLAMP:EXCP2-A;PI MOUNT;2X26.5 MM;PCD76",null,395,null,0]
[null,145,"EXCP2-B",null,"CLAMP;EXCP2-B;PI-MOUNT;2X26.5;PCD127",null,775,null,{"$f":"H149*G149","v":0}]
[null,146,"EXCP2-C",401671,"CLAMP:EXCP2-C;PI MOUNT;2X38.3 MM;PCD76",null,1175,null,0]
[null,147,"EXCP2-D",401669,"CLAMP:EXCP2-D;PI-MOUNT;2X38.3 MM;PCD127",null,25,null,0]
[null,148,"EXCP2-E",null,"CLAMP;EXCP2-E;PI-MOUNT;2X38.3;PCD225",null,575,null,0]
[null,149,"EXCP3-A",null,"CLAMP;EXCP3-A;3X26.5;PI-MOUNT;PCD127",null,1675,null,0]
[null,150,"EXCP3-B",null,"CLAMP;EXCP3-B;3X38.3;PI-MOUNT;PCD127",null,825,null,0]
[null,151,"EXCP3-C",null,"CLAMP;EXCP3-C;3X26.5;PI-MOUNT;PCD225",null,25,null,0]
[null,152,"EYBC-A",null,"CLAMP;EYBC-A;RUN2X26.5;TAP26.5;150CRS",null,25,null,0]
[null,153,"EYBC-B",null,"CLAMP;EYBC-B;RUN2X26.5;TAP38.3;330CRS",null,25,null,0]
[null,154,"EYBC-C",null,"CLAMP;EYBC-C;RUN2X38.3;TAP26.5;150CRS",null,25,null,0]
[null,155,"EYBC-D",null,"CLAMP;EYBC-D;RUN2X38.3;TAP38.3;150CRS",null,25,null,0]
[null,156,"EYBC-E",null,"CLAMP;EYBC-E;RUN2X38.3;TAP38.3;330CRS",null,25,null,0]
[null,157,"EPT-A",590147,"CLAMP:EPT-A; RUN 26.5MM ON 4 HOLE PAD",null,275,null,0]
[null,158,"EPT-B",590148,"CLAMP:EPT-B; RUN 38.3MM ON 4 HOLE PAD",null,425,null,0]
[null,159,"EPT2-A",590149,"CLAMP:EPT2-A;RUN 2X26.5MM ON 8 HOLE PAD ",null,925,null,0]
[null,160,"EPT2-B",590150,"CLAMP:EPT2-B;RUN 2X38.3MM ON 8 HOLE PAD",null,525,null,0]
[null,161,"EPTT2-A",698176,"CLAMP:EPTT2-A;2X26.5;TWISTED 8 HOLE PAD",null,25,null,0]
[null,162,"EPTT2-B",636592,"CLAMP:EPTT2-B;2X38.3;TWISTED 8 HOLE PAD",null,275,null,0]
[null,163,"EEPC-A",401653,"CLAMP, PEG AL CENT 26.5mm EPC-26",null,825,null,0]
[null,164,"EEPC-B",401655,"CLAMP, PEG AL BULL 38.3mm EPC-38",null,525,null,0]
[null,165,"EEPC-C",194285,"CLAMP, PEG AL HORN 16.3mm EPC-14-40",null,685,null,0]
[null,166,"EESP-A",562893,"CLAMP:EESP-A;4 HOLE PAD TO STEM;38 MM",null,425,null,0]
[null,167,"EPISF-A",null,"CLAMP;EPISF-A;38;PI-MOUNT-STEM;PCD76",null,25,null,0]
[null,168,"EPISF-B",null,"CLAMP;EPISF-B;38;PI-MOUNT-STEM;PCD127",null,335,null,0]
[null,169,"EPISF-C",null,"CLAMP;EPISF-C;38;PI-MOUNT-STEM;PCD225",null,575,null,0]
[null,170,"EYCT-A",655935,"CLAMP:EYCT-A;0DG COMP/8H PAD;2X38.3 MM",null,25,null,{"$f":"H174*G174","v":0}]
[null,171,"EYCT-B",655936,"CLAMP:EYCT-B;45DG COMP/8H PAD;2X38.3 MM",null,25,null,0]
[null,172,"EYCT-C",655937,"CLAMP:EYCT-C;90DG COMP/8H PAD;2X38.3 MM",null,25,null,0]
[null,173,"EYCT-D",655938,"CLAMP:EYCT-D;0DG COMP/8H PAD;2X26.5 MM",null,25,null,0]
[null,174,"EYCT-E",655939,"CLAMP:EYCT-E;45DG COMP/8H PAD;2X26.5 MM",null,25,null,0]
[null,175,"EYCT-F",655940,"CLAMP:EYCT-F;90DG COMP/8H PAD;2X26.5 MM",null,25,null,0]
[null,176,"EYCDT-A",655844,"CLAMP:EYCDT-A;0DG COMP/8H PAD;4X38.3 MM",null,25,null,0]
[null,177,"EYCDT-B",655847,"CLAMP:EYCDT-B;45DG COMP/8H PAD;4X38.3 MM",null,25,null,0]
[null,178,"EYCDT-C",655932,"CLAMP:EYCDT-C;90DG COMP/8H PAD;4X38.3 MM",null,25,null,0]
[null,179,"EYCDT-D",655845,"CLAMP:EYCDT-D;0DG COMP/8H PAD;4X26.5 MM",null,25,null,0]
[null,180,"EYCDT-E",655933,"CLAMP:EYCDT-E;45DG COMP/8H PAD;4X26.5 MM",null,25,null,0]
[null,181,"EYCDT-F",655934,"CLAMP:EYCDT-F;90DG COMP/8H PAD;4X26.5 MM",null,25,null,0]
[null,182,"ECJW-A",11434,"WEIGHT:ECJW-A;38.3 MM CONDUCTOR JUMPER",null,25,null,0]
[null,183,"ECJW-B",11433,"WEIGHT:ECJW-B;26.5 MM CONDUCTOR JUMPER",null,525,null,0]
[null,184,"SPC-38/AL",null,"STUD 150mm long, Palm drill 4 holes x 14mm dia 50mm Centre",null,25,null,0]
[null,185,50,null,"CLAMP,TUBE 50dia/2x26.5, 45 DEG (similar ETP-IL 2-B)",null,375,null,{"$f":"H189*G189","v":0}]
[null,186,"ETP-TW2-AE",null,"ETP-TW2-AE",null,150,null,0]
[null,187,"ETP-TW2-AF",null,"ETP-TW2-AF",null,25,null,0]
[null,188,"ETP-IL2-AF",null,"ETP-IL2-AF",null,25,null,0]
[null,189,"EYC2-H",null,"EYC2-H",null,25,null,0]
[null,190,"EYCS-H",null,"EYCS-H",null,25,null,0]
[null,191,"ETP-TW2-AC",null,"ETP-TW2-AC",null,25,null,0]
[null,192,"TBC",null,"Transformer Bushing Clamp",null,25,null,0]
[null,193,null,17203,"38 mm dia x 1500 mm Long",null,25,null,0]
[null,194,"ACC1",402647,"COVER:ACC1 ;CLAMP ;ID 125 X LG 220 MM",null,150,null,0]
[null,195,"ACC2",11495,"COVER:ACC2 ;CLAMP ;ID 135 X LG 257 MM",null,375,null,0]
[null,196,"ACC3",402649,"COVER:ACC3 ;CLAMP ;ID 110 X LG 350 MM",null,1125,null,{"$f":"H200*G200","v":0}]
[null,197,"ACC4",402651,"COVER:ACC4 ;CLAMP ;ID 160 X LG 480 MM",null,525,null,0]
[null,198,"ACC5",11498,"COVER:ACC5 ;CLAMP ;ID 135 X LG 400 MM",null,225,null,0]
[null,199,"ACC6",11499,"COVER:ACC6 ;CLAMP ;ID 220 X LG 485 MM",null,1025,null,0]
[null,200,"ACC7",402665,"COVER:ACC7 ;CLAMP ;ID 220 X LG 320 MM",null,1475,null,0]
[null,201,"ACC8",11551,"COVER:ACC8 ;CLAMP ;ID 240 X LG 815 MM",null,225,null,0]
[null,202,"ACC9",11008,"COVER:ACC9 ;COVER ;ID 280 X LG 430 MM",null,25,null,0]
[null,203,"EUC",11120,"RING ASSEMBLY:UNIVERSAL CORONA;CENTER",null,175,null,0]
[null,204,"ECRST-LH",11234,"RING:ECRST-LH;CORONA, LH;ID 499 MM",null,25,null,0]
[null,205,"ECRST-RH",1235,"RING:ECRST-RH;CORONA, RH;ID 499 MM",null,325,null,0]
[null,206,null,5199,"CLAMP STRN:Y, BOLTED;38.3 MM;AL;2Y2+2Y4",null,25,null,0]
[null,207,null,402574,"CLAMP STRN:10-21.5 MM;AL",null,325,null,0]
[null,208,null,402501,"CLAMP,SUSP CRADLE CON 15.0-24.4    D3008",null,25,null,0]
[null,209,null,11098,"ASSY:CLAMP V SUSPENSION;26.5 MM;AL;F43",null,25,null,0]
[null,210,null,401658,"CLAMP STRN:Y, BOLTED;26.5 MM;AL;Y1-3",null,325,null,0]
[null,211,null,5160,"CLAMP STRN:Y, BOLTED;38.3 MM;AL;Y2-4",null,25,null,0]
[null,212,null,11080,"ASSY:SINGLE STRAIN, CONDUCTOR CLAMP",null,25,null,{"$f":"H216*G216","v":0}]
[null,213,null,11014,"ASSY:SINGLE SUSPENSION STRAIN CLAMP",null,25,null,0]
[null,214,null,11089,"ASSY:SINGLE SUSPENSION;AL",null,25,null,0]
[null,215,null,11085,"ASSY:CLAMP TRIPLE STRAIN;AL",null,25,null,0]
[null,216,null,11087,"ASSY:CLAMP V STRAIN;AL",null,25,null,0]
[null,217,null,11092,"ASSY:CLAMP V SUSPENSION;38.3 MM;FF40",null,25,null,0]
[null,218,null,11093,"CLAMP SPNSN:40-30 MM;AL",null,25,null,0]
[null,219,null,11091,"ASSY:CLAMP V SUSPENSION;38.3 MM;AL",null,25,null,0]
[null,220,null,401632,"CLAMP STRN:14.3 MM;3.7-14.3 MM;ALUMINIUM",null,25,null,0]
[null,221,null,560893,"CLAMP STRN:2X38.3MM PALM 90DG;2700 A",null,25,null,0]
[null,222,null,11084,"ASSY:CLAMP SINGLE STRAIN;AL",null,25,null,0]
[null,223,null,10958,"CLAMP STRN:3 BOLT PISTOL;5-20.5 MM;AL",null,175,null,0]
[null,224,null,11088,"ASSY:CLAMP SINGLE SUSPENSION;AL;E46",null,225,null,0]
[null,225,null,11082,"ASSY:CLAMP SINGLE STRAIN",null,25,null,0]
[null,226,null,11081,"ASSY:CLAMP SINGLE STRAIN;A41;38,3 MM",null,25,null,0]
[null,227,null,11094,"CLAMP STRN:SINGLE PISTOL;38.3 MM",null,25,null,0]
[null,228,null,659899,"SLEEVE:ECES-A;COND-END;26.5 MM",null,25,null,0]
[null,229,null,659900,"SLEEVE:ECES-B;COND-END;38.3 MM",null,{"v":84.5,"d":"85"},null,0]
[null,230,null,null,"ETP-IL2-AE",null,25,null,0]
[null,231,null,null,"EYCT-B",null,25,null,0]
[null,232,null,null,"EYC-S",null,25,null,{"$f":"H236*G236","v":0}]
[null,233,null,null,"EXCP2-D",null,25,null,0]
[null,234,null,null,"EEC-DC-J",null,{"v":45.5,"d":"46"},null,0]
[null,235,null,null,"EEC-PL-G",null,25,null,0]
[null,236,null,null,"EEC-CF-G",null,25,null,0]
[null,237,null,401772,"CLAMP:EYC-F;2X38.3 COMP 38 BOLTED 90DG",null,375,null,0]
[null,238,null,402664,"COVER:CLAMP;LG (BODY 410 X INSIDE 360)",null,25,null,0]
[{"$nulls":7},"TOTAL EXL VAT",{"$f":"SUM(I5:I242)","v":0}]
[{"$nulls":6},"VAT AT 15%",null,{"$f":"SUM(I243)*0.15","v":0}]
[{"$nulls":7},"TOTAL INCLUDING VAT",{"$f":"SUM(I243)","v":0}]

{"sheet":" CPA ","index":2,"n_rows":146,"n_cols":15,"rows_kept":146,"merged":[[1,1,1,2],[1,3,1,5],[2,1,2,2],[2,3,2,5],[3,1,3,2],[3,3,3,5],[5,1,5,7],[7,3,7,4],[8,3,8,5],[9,3,9,5],[10,3,10,5],[11,3,11,5],[12,3,12,5],[13,3,13,5],[14,3,14,5],[15,3,15,5],[16,3,16,5],[17,3,17,5],[19,1,19,7],[20,2,20,7],[21,2,21,7],[23,1,23,7],[24,2,24,7],[25,2,25,7],[26,2,26,7],[27,2,27,7],[28,2,28,7],[29,2,29,7],[31,1,31,7],[32,2,32,7],[33,2,33,7],[34,2,34,7],[35,2,35,7],[36,2,36,7],[38,2,38,7],[49,2,49,7],[60,2,60,7],[71,2,71,7],[82,2,82,7],[93,2,93,7],[104,2,104,7],[115,2,115,7],[126,2,126,7],[137,2,137,7]]}
[]
[null,"Enquiry No.",null,{"$f":"'Tender Cover Sheet'!D3","v":"E2774NTCSATX"}]
[null,"Package Name:",null,{"$f":"'Tender Cover Sheet'!D4","v":"THE DESIGN, MANUFACTURE, TESTING AND SUPPLY OF SUBSTATION STRANDED CONDUCTOR CLAMPS AND SUBSTATION HARDWARE FOR NATIONAL TRANSMISSION COMPANY SOUTH AFRICA (NTCSA), ON AN “AS AND WHEN” REQUIRED BASIS"}]
[null,"Tenderer's Name:",null,{"$f":"'Tender Cover Sheet'!D5","v":0}]
[]
[null,"CONTRACT PRICE ADJUSTMENT (CPA) FOR INFLATION"]
[null,"No.","Formula Code","Summary of the description of the Tenderer's Formulae"]
[null,1,"Fixed","Firm and Fixed and Firm for the full duration of Contract",null,null,"Prices are 100 % fixed and firm. CPA is not applicable. "]
[null,2,"A",{"$f":"C39","v":"Tenderer's description of Formula a"},null,null,"Type in the description of each formula in the tables below"]
[null,3,"B",{"$f":"C50","v":"Tenderer's description of Formula B"}]
[null,4,"C",{"$f":"C61","v":"Tenderer's description of Formula C"}]
[null,5,"D",{"$f":"C72","v":"Tenderer's description of Formula D"}]
[null,6,"E",{"$f":"C83","v":"Tenderer's description of Formula E"}]
[null,7,"F",{"$f":"C94","v":"Tenderer's description of Formula F"}]
[null,8,"G",{"$f":"C105","v":"Tenderer's description of Formula G"}]
[null,9,"H",{"$f":"C116","v":"Tenderer's description of Formula H"}]
[null,10,"I",{"$f":"C127","v":"Tenderer's description of Formula I"}]
[null,11,"J",{"$f":"C138","v":"Tenderer's description of Formula J"}]
[]
[null,"SPECIFIC REQUIREMENTS"]
[null,{"v":1,"d":"1."},"Only Main Offer is to be submitted. Main offer tenderers are to fully comply with the requirements in the General Notes and CPA Formulae Notes below."]
[null,{"v":2,"d":"2."},"No ALTERNATIVE offers are accepted."]
[]
[null,"GENERAL NOTES :"]
[null,1,"References to \"indices\" below mean \"cost indices or reference prices\"."]
[null,2,"Where 5 year historical information must be provided as instructed below, internet address references which are accessible to the general public may be submitted by the Tenderer instead, with the specific electronic route and web page reflecting the applicable data."]
[null,3,"The worksheet  CPA Formula in PS5 Summary has to be populated by the tenderer (Row 9:9), unless the tenderer’s prices are fixed and firm for the duration of the contract. Each CPA formula must add up to a total of 100%.  All columns are to be populated. No inhouse CPA indices may be used. Tenderers are to provide all requested information.CPA Formulae should represent cost breakdown of the goods/commodities/components/items being sourced.\n"]
[null,4,"CPA Formulae Codes B8:B19 above is to be populated by the tenderer in the \"PS5 Summary\" tab, row 9:9, by selecting the respecting the correct formula code from the dropdown list as developed by Tenderer hereunder. Codes and descriptions must be selected by the tenderer and inserted into each row of activity. "]
[null,5,"CPA will kick in after sixteen (16) months from the contract base date (contract base date is one month prior to enquiry closing), for commodities with prices that are less volatile. The sixteen months comprises of one (1) month prior to enquiry closing, three (3) months normal tender validity period as prescribed by the CIDB Act, and the twelve (12) months being the first twelve (12) months of the contract period."]
[null,6,"The CPA escalation will be calculated as follows: The base date for CPA calculation purposes will be one month prior to enquiry closing or as agreed to between the parties (if there is a need to move the base date during contract negotiations). The latest / ruling index used for CPA calculation purposes will be aligned to the delivery dates of the equipment on the assessment for payment on a particular payment certificate month."]
[]
[null,"CPA FORMULA NOTES :"]
[null,1,"Proportions/weightings in CPA Formulae: The fixed portion of each formula, not subject to CPA, must be at least 15%.  The other constituent indices and their proportions in each formula must be realistic and relative to the applicable work. The fixed portion and other proportions must add up to 100%.   "]
[null,2,"Formulae must be linked to independent cost indices or other benchmarks (\"reference prices\") and must be clearly and completely defined. The source must be a recognised and independent statistical publishing organisation.  The Tenderers' in-house indices may not be used."]
[null,3,"Local Price CPA: Where local indices other than those published by SEIFSA or Statistics SA are specified, the Tenderer must submit 5 years' of month by month historical data for such indices. The Tenderer must ensure that indices are published and recommended by the source thereof as applicable to the work involved and that they are still in force/use and applicable at the date of submission of the tender. "]
[null,4,"CPA Base Date: The CPA base date for calculating price movements will be the Base Date, Month before Tender closes. For indices or reference prices published as at certain dates, and where such a date is not the Base Date, the latest date for which it is published before the Base Date will be considered as the Base Date index or reference price.  In instances where the figure or value is not as at the Base Date or considered as the Base Date Index or reference price as explained herein, the date, figure or value as well as the reason for the deviation must be clearly separately stated and must be realistic for purposes of CPA.  "]
[null,5,"Base Date Index :   The base index or reference price must be inserted in the appropriate column."]
[null," "," "]
[null,"Formula A","Tenderer's description of Formula a"]
[null,"Index Ref.","Proportions / weightings for each index (refer note 1)","Description / scope of index (e.g. Labour)","Title/Definition : Linked to the index, e.g., Table C3, All hourly paid employees.  Must be completely defined","Source/publisher of index (e.g. SEIFSA, StatsSA, LME)","Base Month for CPA if not Base Date as defined (refer note 4)","Base Date Index (refer note 5)","Historical data provided (Yes or No- provide http link)","yy/mm/dd","yy/mm/dd","yy/mm/dd","yy/mm/dd","yy/mm/dd","yy/mm/dd"]
[null,"A1",{"v":0.85,"d":"85%"},"C3A"]
[null,"A2"]
[null,"A3"]
[null,"A4"," "]
[null,"A5"]
[null,"A6",{"v":0.15,"d":"15%"},"Fixed 15% minimum not subject to CPA (0.150)"]
[null,null,{"$f":"SUM(C41:C46)","v":{"v":1,"d":"100%"}},"Total","This Total is to add up to 100% for each CPA formula submitted by tenderer"]
[]
[]
[null,"Formula B","Tenderer's description of Formula B"]
[null,"Index Ref.","Proportions / weightings for each index (refer note 1)","Description / scope of index (e.g. Labour)","Title/Definition : Linked to the index, e.g., Table C3, All hourly paid employees.  Must be completely defined","Source/publisher of index (e.g. SEIFSA, StatsSA, LME)","Base Month for CPA if not Base Date as defined (refer note 4)","Base Date Index (refer note 5)","Historical data provided (Yes or No- provide Internet address)","yy/mm/dd","yy/mm/dd","yy/mm/dd","yy/mm/dd","yy/mm/dd","yy/mm/dd"]
[null,"B1"]
[null,"B2"," "]
[null,"B3"]
[null,"B4"," "]
[null,"B5"," "]
[null,"B6",{"v":0.15,"d":"15%"},"Fixed 15% minimum not subject to CPA (0.150)"]
[null,null,{"$f":"SUM(C52:C57)","v":{"v":0.15,"d":"15%"}},"Total","This Total is to add up to 100% for each CPA formula submitted by tenderer"]
[]
[]
[null,"Formula C","Tenderer's description of Formula C"]
[null,"Index Ref.","Proportions / weightings for each index (refer note 1)","Description / scope of index (e.g. Labour)","Title/Definition : Linked to the index, e.g., Table C3, All hourly paid employees.  Must be completely defined","Source/publisher of index (e.g. SEIFSA, StatsSA, LME)","Base Month for CPA if not Base Date as defined (refer note 4)","Base Date Index (refer note 5)","Historical data provided (Yes or No- provide Internet address)","yy/mm/dd","yy/mm/dd","yy/mm/dd","yy/mm/dd","yy/mm/dd","yy/mm/dd"]
[null,"C1",{"$nulls":4}," "," "," "]
[null,"C2"," "]
[null,"C3"]
[null,"C4"," "]
[null,"C5"," "]
[null,"C6",{"v":0.15,"d":"15%"},"Fixed 15% minimum not subject to CPA (0.150)"]
[null,null,{"$f":"SUM(C63:C68)","v":{"v":0.15,"d":"15%"}},"Total","This Total is to add up to 100% for each CPA formula submitted by tenderer"]
[]
[]
[null,"Formula D","Tenderer's description of Formula D"]
[null,"Index Ref.","Proportions / weightings for each index (refer note 1)","Description / scope of index (e.g. Labour)","Title/Definition : Linked to the index, e.g., Table C3, All hourly paid employees.  Must be completely defined","Source/publisher of index (e.g. SEIFSA, StatsSA, LME)","Base Month for CPA if not Base Date as defined (refer note 4)","Base Date Index (refer note 5)","Historical data provided (Yes or No- provide Internet address)","yy/mm/dd","yy/mm/dd","yy/mm/dd","yy/mm/dd","yy/mm/dd","yy/mm/dd"]
[null,"D1"," "]
[null,"D2"," "]
[null,"D3"]
[null,"D4"," "]
[null,"D5"," "]
[null,"D6",{"v":0.15,"d":"15%"},"Fixed 15% minimum not subject to CPA (0.150)"]
[null,null,{"$f":"SUM(C74:C79)","v":{"v":0.15,"d":"15%"}},"Total","This Total is to add up to 100% for each CPA formula submitted by tenderer"]
[]
[]
[null,"Formula E","Tenderer's description of Formula E"]
[null,"Index Ref.","Proportions / weightings for each index (refer note 1)","Description / scope of index (e.g. Labour)","Title/Definition : Linked to the index, e.g., Table C3, All hourly paid employees.  Must be completely defined","Source/publisher of index (e.g. SEIFSA, StatsSA, LME)","Base Month for CPA if not Base Date as defined (refer note 4)","Base Date Index (refer note 5)","Historical data provided (Yes or No- provide Internet address)","yy/mm/dd","yy/mm/dd","yy/mm/dd","yy/mm/dd","yy/mm/dd","yy/mm/dd"]
[null,"E1"," "]
[null,"E2"," "]
[null,"E3"]
[null,"E4"," "]
[null,"E5"," "]
[null,"E6",{"v":0.15,"d":"15%"},"Fixed 15% minimum not subject to CPA (0.150)"]
[null,null,{"$f":"SUM(C85:C90)","v":{"v":0.15,"d":"15%"}},"Total","This Total is to add up to 100% for each CPA formula submitted by tenderer"]
[]
[]
[null,"Formula F","Tenderer's description of Formula F"]
[null,"Index Ref.","Proportions / weightings for each index (refer note 1)","Description / scope of index (e.g. Labour)","Title/Definition : Linked to the index, e.g., Table C3, All hourly paid employees.  Must be completely defined","Source/publisher of index (e.g. SEIFSA, StatsSA, LME)","Base Month for CPA if not Base Date as defined (refer note 4)","Base Date Index (refer note 5)","Historical data provided (Yes or No- provide Internet address)","yy/mm/dd","yy/mm/dd","yy/mm/dd","yy/mm/dd","yy/mm/dd","yy/mm/dd"]
[null,"F1"]
[null,"F2"]
[null,"F3"]
[null,"F4"]
[null,"F5"]
[null,"F6",{"v":0.15,"d":"15%"},"Fixed 15% minimum not subject to CPA (0.150)"]
[null,null,{"$f":"SUM(C96:C101)","v":{"v":0.15,"d":"15%"}},"Total","This Total is to add up to 100% for each CPA formula submitted by tenderer"]
[]
[]
[null,"Formula G","Tenderer's description of Formula G"]
[null,"Index Ref.","Proportions / weightings for each index (refer note 1)","Description / scope of index (e.g. Labour)","Title/Definition : Linked to the index, e.g., Table C3, All hourly paid employees.  Must be completely defined","Source/publisher of index (e.g. SEIFSA, StatsSA, LME)","Base Month for CPA if not Base Date as defined (refer note 4)","Base Date Index (refer note 5)","Historical data provided (Yes or No- provide Internet address)","yy/mm/dd","yy/mm/dd","yy/mm/dd","yy/mm/dd","yy/mm/dd","yy/mm/dd"]
[null,"G1"," "]
[null,"G2"," "]
[null,"G3"," "]
[null,"G4"]
[null,"G5"," "]
[null,"G6",{"v":0.15,"d":"15%"},"Fixed 15% minimum not subject to CPA (0.150)"]
[null,null,{"$f":"SUM(C107:C112)","v":{"v":0.15,"d":"15%"}},"Total","This Total is to add up to 100% for each CPA formula submitted by tenderer"]
[]
[]
[null,"Formula H","Tenderer's description of Formula H"]
[null,"Index Ref.","Proportions / weightings for each index (refer note 1)","Description / scope of index (e.g. Labour)","Title/Definition : Linked to the index, e.g., Table C3, All hourly paid employees.  Must be completely defined","Source/publisher of index (e.g. SEIFSA, StatsSA, LME)","Base Month for CPA if not Base Date as defined (refer note 4)","Base Date Index (refer note 5)","Historical data provided (Yes or No- provide Internet address)","yy/mm/dd","yy/mm/dd","yy/mm/dd","yy/mm/dd","yy/mm/dd","yy/mm/dd"]
[null,"H1"," "]
[null,"H2"," "]
[null,"H3"," "]
[null,"H4"," "]
[null,"H5"," "]
[null,"H6",{"v":0.15,"d":"15%"},"Fixed 15% minimum not subject to CPA (0.150)"]
[null,null,{"$f":"SUM(C118:C123)","v":{"v":0.15,"d":"15%"}},"Total","This Total is to add up to 100% for each CPA formula submitted by tenderer"]
[]
[]
[null,"Formula I","Tenderer's description of Formula I"]
[null,"Index Ref.","Proportions / weightings for each index (refer note 1)","Description / scope of index (e.g. Labour)","Title/Definition : Linked to the index, e.g., Table C3, All hourly paid employees.  Must be completely defined","Source/publisher of index (e.g. SEIFSA, StatsSA, LME)","Base Month for CPA if not Base Date as defined (refer note 4)","Base Date Index (refer note 5)","Historical data provided (Yes or No- provide Internet address)","yy/mm/dd","yy/mm/dd","yy/mm/dd","yy/mm/dd","yy/mm/dd","yy/mm/dd"]
[null,"I1"," "]
[null,"I2"," "]
[null,"I3"," "]
[null,"I4"]
[null,"I5"," "]
[null,"I6",{"v":0.15,"d":"15%"},"Fixed 15% minimum not subject to CPA (0.150)"]
[null,null,{"$f":"SUM(C129:C134)","v":{"v":0.15,"d":"15%"}},"Total","This Total is to add up to 100% for each CPA formula submitted by tenderer"]
[]
[]
[null,"Formula J","Tenderer's description of Formula J"]
[null,"Index Ref.","Proportions / weightings for each index (refer note 1)","Description / scope of index (e.g. Labour)","Title/Definition : Linked to the index, e.g., Table C3, All hourly paid employees.  Must be completely defined","Source/publisher of index (e.g. SEIFSA, StatsSA, LME)","Base Month for CPA if not Base Date as defined (refer note 4)","Base Date Index (refer note 5)","Historical data provided (Yes or No- provide Internet address)","yy/mm/dd","yy/mm/dd","yy/mm/dd","yy/mm/dd","yy/mm/dd","yy/mm/dd"]
[null,"J1"," "]
[null,"J2"]
[null,"J3"," "]
[null,"J4"," "]
[null,"J5"," "]
[null,"J6",{"v":0.15,"d":"15%"},"Fixed 15% minimum not subject to CPA (0.150)"]
[null,null,{"$f":"SUM(C140:C145)","v":{"v":0.15,"d":"15%"}},"Total","This Total is to add up to 100% for each CPA formula submitted by tenderer"]